Cogmind - Beta 12 @@@ ROGUE MODE // 2023.07.10 @ 14:09:50 Player: Senator Honkstrong Result: Destroyed by 8R-AWN with 8R-AWN's Boregun Performance ------------- Evolutions (0) 0 Regions Visited (3) 600 Robots Destroyed (47) 235 Value Destroyed (719) 719 Prototype IDs (26) 520 Alien Tech Used (0) 0 Bonus (321) 321 TOTAL SCORE: 2395 Bonus ------- Follower Combat Kills 21 Aligned with FarCom 300 Cogmind --------- Core Integrity 0/250 Matter 251/300 Energy 147/150 System Corruption 0% Temperature Hot (268) Movement Treading (165) Location -10/Exiles Parts ------- > --- POWER (1) -------- Light Angular Momentum Engine > --- PROPULSION (2) --- Light Treads Armored Treads > --- UTILITY (2) ------ Large Storage Unit Advanced Targeting Computer > --- WEAPON (2) ------- Beamcaster Light Assault Rifle > --- INVENTORY (15) --- Ion Engine Light Nuclear Core Light Treads Light Treads Heat Sink High-capacity Matter Pod (200) Light Armor Plating Medium Laser Latent Energy Streamer Assault Rifle Light Assault Rifle Light Assault Rifle Grenade Launcher Datajack Peak State ------------ > --- POWER ------------ Light Angular Momentum Engine > --- PROPULSION ------- Light Treads Armored Treads > --- UTILITY ---------- Large Storage Unit Advanced Targeting Computer > --- WEAPON ----------- Beamcaster Latent Energy Streamer > --- INVENTORY -------- Ion Engine Light Nuclear Core Light Treads Light Treads Heat Sink High-capacity Matter Pod Light Armor Plating Medium Laser Assault Rifle Assault Rifle Light Assault Rifle Light Assault Rifle Light Assault Rifle Grenade Launcher Datajack [Rating: 29] Favorites ----------- Power Light Nuclear Core Engine Ion Engine Power Core Light Nuclear Core Propulsion Light Treads Treads Light Treads Utility Large Storage Unit Storage Large Storage Unit Processor Advanced Targeting Computer Hackware Hacking Suite Weapon Assault Rifle Energy Gun Particle Gun Energy Cannon Latent Energy Streamer Ballistic Gun Assault Rifle Build | -11 -10 -10 -10 ------- Run | Jun Mat Min Exi Slots Evolved . | . . . . Power . | . . . . Propulsion . | . . . . Utility . | . . . . Weapon . | . . . . Parts Attached 23 | 6 6 8 3 Power 4 | 1 1 2 . Engine 2 | 1 . 1 . Core 2 | . 1 1 . Reactor . | . . . . Propulsion 6 | 2 1 3 . Treads 6 | 2 1 3 . Leg . | . . . . Wheel . | . . . . Hover . | . . . . Flight . | . . . . Utility 4 | 1 2 1 . Device . | . . . . Storage 2 | 1 1 . . Processor 1 | . . 1 . Hackware 1 | . 1 . . Protection . | . . . . Artifact . | . . . . Weapon 9 | 2 2 2 3 Energy Gun 3 | . 2 1 . Energy Cannon 1 | . . . 1 Ballistic Gun 5 | 2 . 1 2 Ballistic Cannon . | . . . . Launcher . | . . . . Special Weapon . | . . . . Impact Weapon . | . . . . Slashing Weapon . | . . . . Piercing Weapon . | . . . . Special Melee Weapon . | . . . . Unidentified Prototypes . | . . . . Parts Lost 3 | . . 2 1 Power . | . . . . Propulsion 1 | . . 1 . Utility . | . . . . Weapon 2 | . . 1 1 Highest Loss Streak 1 | . . 1 1 To Critical Strikes 1 | . . . 1 Average Slot Usage (%) 97 | . 95 99 100 Engine 6 | . 6 1 14 Core 7 | . 7 12 . Treads 27 | . 28 27 28 Storage 14 | . 14 14 14 Processor 6 | . . 10 14 Hackware 5 | . 9 3 . Energy Gun 12 | . 10 14 14 Energy Cannon 1 | . . . 7 Ballistic Gun 14 | . 17 13 6 Naked Turns . | . . . . Heaviest Build 44 | 14 30 35 44 Greatest Support 40 | 40 40 40 40 Greatest Overweight (x) 1 | . . 1 1 Average Overweight (x) . | . . . . Largest Inventory Capacity 15 | 8 15 15 15 Average Capacity 12 | 7 12 15 15 Most Carried 15 | 1 15 15 15 Average Carried 10 | . 10 14 14 Final Capacity 15 | 8 15 15 15 Final Carried 15 | 1 15 15 14 Class Distribution -------------------- 100% | Mutant Dominant Class ---------------- Mutant | -10/Materials Mutant | -10/Mines Mutant | -10/Exiles Resources | -11 -10 -10 -10 ----------- Run | Jun Mat Min Exi Matter Collected 1022 | 500 405 117 . Remotely . | . . . . Salvage Created 1376 | 392 726 258 . Parts 110 | 32 56 22 . Haulers Intercepted 1 | . 1 . . Recyclers Shooed 4 | . 4 . . Parts Field Recycled . | . . . . Retrieved Matter . | . . . . Parts Self-Destructed . | . . . . Prevented . | . . . . Kills | -11 -10 -10 -10 ------- Run | Jun Mat Min Exi Combat Hostiles Destroyed 21 | . 13 8 . Guns 21 | . 13 8 . Classes Destroyed 10 | 3 6 1 . Worker 6 | 4 2 . . Builder 1 | . 1 . . Tunneler 10 | 9 . 1 . Hauler 1 | . 1 . . Recycler 4 | 1 3 . . Operator 1 | . 1 . . Watcher 3 | . 3 . . Swarmer 9 | . 6 3 . Grunt 11 | . 7 4 . Sentry 1 | . . 1 . Best Kill Streak 13 | 3 13 2 . Combat Bots Only 8 | . 8 2 . Max Kills in Single Turn 2 | 1 2 1 . Gunslinging 1 | . 1 . . Exploded . | . . . . Melee . | . . . . Uniques/NPCs Destroyed . | . . . . Combat | -11 -10 -10 -10 -------- Run | Jun Mat Min Exi Damage Taken 1106 | . 291 453 362 Core 251 | . 79 88 84 Absorbed by Shields . | . . . . Core Remaining (%) 100 | 100 . . . Volleys Fired 129 | 40 50 30 9 Largest 2 | 2 2 2 2 Hottest 95 | 40 85 95 95 Shots Fired 249 | 80 97 55 17 Gun 249 | 80 97 55 17 Cannon . | . . . . Launcher . | . . . . Special . | . . . . Kinetic 166 | 80 53 25 8 Thermal 83 | . 44 30 9 Explosive . | . . . . Electromagnetic . | . . . . Robot Hit Streak 13 | 4 10 13 7 Robot Miss Streak 4 | 4 3 3 1 Penetration Max . | . . . . Secondary Targets 3 | . 2 1 . Max Gunslinging Chain 1 | . 1 1 . Shots Hit Robots 149 | 37 64 37 11 Core Hits 64 | 15 33 14 2 Critical Kills 1 | . 1 . . Critical Parts Destroyed . | . . . . Critical Strikes 5 | . 4 1 . Burn 4 | . 3 1 . Destroy 1 | . 1 . . Melee Attacks . | . . . . Impact . | . . . . Slashing . | . . . . Piercing . | . . . . Sneak Attacks . | . . . . Combat Hostiles . | . . . . Follow-up Attacks . | . . . . Damage Inflicted 1927 | 503 856 522 46 Guns 1911 | 503 848 514 46 Cannons . | . . . . Explosions . | . . . . Melee . | . . . . Ramming 16 | . 8 8 . Kinetic 1139 | 503 448 156 32 Thermal 772 | . 400 358 14 Explosive . | . . . . Electromagnetic . | . . . . Impact . | . . . . Slashing . | . . . . Piercing . | . . . . Highest Corruption . | . . . . Average Corruption . | . . . . Corruption Purged . | . . . . Corruption Blocked . | . . . . Overload Shots . | . . . . Overflow Damage . | . . . . Projectiles . | . . . . Explosions . | . . . . Melee . | . . . . Knockbacks . | . . . . Impact . | . . . . Kinetic . | . . . . Secondary . | . . . . Self-Inflicted Damage . | . . . . Shots . | . . . . Rammed 3 | . 1 2 . Targets Rammed 5 | . 2 3 . Kicked . | . . . . Crushed 2 | . 1 1 . Highest Temperature 268 | . 180 255 268 Average Temperature 81 | . 53 106 114 Received Heat Transfer 258 | . 81 177 . Effects 3 | . . 3 . Interference 3 | . . 3 . Siege Activations . | . . . . Robots Corrupted . | . . . . Combat Hostiles . | . . . . Parts Fried . | . . . . Impact Corruptions . | . . . . Robots Melted . | . . . . Combat Hostiles . | . . . . Parts Melted 3 | . 1 2 . Heat Transferred 2320 | . 1369 888 63 Parts Sabotaged . | . . . . Parts Stolen . | . . . . Parts Stripped . | . . . . Power Chain Reactions . | . . . . Missiles Intercepted . | . . . . Alert | -11 -10 -10 -10 ------- Run | Jun Mat Min Exi Peak Influence 326 | 60 326 124 . Initial 22 | . 6 22 . Average 76 | 23 143 26 . Maximum Alert Level 1 | . 1 . . Low Security (%) 87 | 100 71 100 . Level 1 12 | . 28 . . Level 2 . | . . . . Level 3 . | . . . . Level 4 . | . . . . Level 5 . | . . . . High Security . | . . . . Max Security . | . . . . Squads Dispatched 5 | . 4 1 . Investigation 3 | . 2 1 . Extermination . | . . . . Reinforcement 2 | . 2 . . Assault . | . . . . Garrison . | . . . . Intercept . | . . . . Searches Triggered . | . . . . Construction Impeded . | . . . . Haulers Reinforced . | . . . . Active Scanning Responses . | . . . . Cargo Convoy Interrupts . | . . . . Stealth | -11 -10 -10 -10 --------- Run | Jun Mat Min Exi Distress Signals 2 | . 2 . . Communications Jammed . | . . . . Distress Signals . | . . . . Times Spotted 46 | . 20 12 14 Peak Tracking Total 9 | . 9 3 3 Tactical Retreats 3 | . 1 . 2 Traps | -11 -10 -10 -10 ------- Run | Jun Mat Min Exi Traps Triggered 2 | . 2 . . Indirectly . | . . . . Trap Hack Attempts . | . . . . Triggered . | . . . . Disarmed . | . . . . Reprogrammed . | . . . . Reused . | . . . . Traps Extracted . | . . . . Installed . | . . . . Triggered . | . . . . Exploded 1 | . . . 1 Machines | -11 -10 -10 -10 ---------- Run | Jun Mat Min Exi Machines Disabled 1 | . . . 1 Max in Single Turn 1 | . . . 1 Machines Repaired . | . . . . Machines Sabotaged . | . . . . Overloaded Fab Kills . | . . . . Hacking | -11 -10 -10 -10 --------- Run | Jun Mat Min Exi Machines Accessed 10 | . 8 1 1 Terminals 6 | . 6 . . Fabricators . | . . . . Repair Stations . | . . . . Recycling Units 2 | . 2 . . Scanalyzers . | . . . . Garrison Access . | . . . . Total Hacks 26 | . 24 1 1 Successful 16 | . 14 1 1 Failed 10 | . 10 . . Catastrophic 1 | . 1 . . Database Lockouts . | . . . . Manual 17 | . 16 . 1 Terminals 19 | . 19 . . Fabricators . | . . . . Repair Stations . | . . . . Recycling Units 5 | . 5 . . Scanalyzers . | . . . . Garrison Access . | . . . . Terminal Hacks 10 | . 8 1 1 Robot Analysis 5 | . 5 . . Prototype ID Bank 2 | . 2 . . Open Door 1 | . . 1 . Unreport Threat 1 | . 1 . . EX-Prototype ID Bank 1 | . . . 1 Fabricator Hacks . | . . . . Repair Station Hacks . | . . . . Recycling Unit Hacks 2 | . 2 . . Retrieve Components 2 | . 2 . . Scanalyzer . | . . . . Garrison Access Hacks . | . . . . Unauthorized Hacks 4 | . 4 . . Terminals 4 | . 4 . . Botnet 4 | . 4 . . Fabricators . | . . . . Repair Stations . | . . . . Recycling Units . | . . . . Scanalyzers . | . . . . Garrison Access . | . . . . Data Cores Recovered 1 | . 1 . . Used . | . . . . Hacking Detections 8 | . 8 . . Full Trace Events . | . . . . Feedback Events . | . . . . Feedback Blocked . | . . . . Robot Schematics Acquired . | . . . . Robots Built . | . . . . Authchips . | . . . . Time . | . . . . Total Robot Build Rating . | . . . . Part Schematics Acquired . | . . . . Parts Built . | . . . . Authchips . | . . . . Time . | . . . . Total Part Build Rating . | . . . . Parts Repaired . | . . . . Time . | . . . . Parts Recycled . | . . . . Recycled Matter . | . . . . Retrieved Matter . | . . . . Retrieved Components 11 | . 11 . . Parts Scanalyzed . | . . . . Part Schematics Acquired . | . . . . Parts Damaged . | . . . . Bothacking | -11 -10 -10 -10 ------------ Run | Jun Mat Min Exi Used RIF Installer . | . . . . Robots Hacked . | . . . . Non-combat . | . . . . Combat . | . . . . Robot Hacks Applied . | . . . . Relay Couplers Released . | . . . . Fabnet Peak Effective % . | . . . . Robots Rewired . | . . . . Allies Hacked . | . . . . Hacks Repelled . | . . . . Allies | -11 -10 -10 -10 -------- Run | Jun Mat Min Exi Total Allies 1 | . . 1 . Largest Group 1 | . . 1 . Highest-Rated Group 31 | . . 31 . Highest-Rated Ally 31 | . . 31 . Total Orders . | . . . . Ally Attacks 11 | . . 11 . Total Damage 148 | . . 148 . Kills 3 | . . 3 . Allies Corrupted . | . . . . Allies Melted . | . . . . Intel | -11 -10 -10 -10 ------- Run | Jun Mat Min Exi Robot Analysis Total 5 | . 5 . . Derelict Logs Recovered 1 | . . 1 . Drone Launches . | . . . . Drone Recoveries . | . . . . Exploration | -11 -10 -10 -10 ------------- Run | Jun Mat Min Exi Turns Passed 3392 | 637 1242 1008 505 Spaces Moved 1657 | 295 626 534 202 Core 4 | 4 . . . Treads 1653 | 291 626 534 202 Legs . | . . . . Wheels . | . . . . Hover . | . . . . Flight . | . . . . Fastest Speed 50 | 50 160 160 165 Average Speed 165 | 158 160 165 192 Slowest Speed 250 | 160 160 250 245 Overloaded Moves . | . . . . Propulsion Burnouts . | . . . . Robots Hopped . | . . . . Cave-ins Triggered . | . . . . Exploration Rate (%) 63 | 9 97 95 53 Regions Visited 3 Branch Regions 2 Pre-discovered Areas . | . . . . Known Exits Taken . | . . . . Unknown Exits Taken 3 | 1 1 1 . Scrap Searched 1 | . . 1 . Spaces Dug . | . . . . Terrain Destroyed . | . . . . Melee . | . . . . Projectile . | . . . . AOE . | . . . . Terrain Rammed . | . . . . Walls Destroyed . | . . . . Machines Disabled . | . . . . Actions | -11 -10 -10 -10 --------- Run | Jun Mat Min Exi Total 2065 | 382 770 610 303 Wait 214 | 40 61 26 87 Move 1654 | 294 625 533 202 Hop . | . . . . Pick Up 25 | 2 19 3 1 Fast Attach 8 | 5 1 2 . Attach 5 | 1 1 2 1 Detach . | . . . . Swap 10 | . 4 4 2 Drop 15 | . 7 7 1 Fire 129 | 40 50 30 9 Melee . | . . . . Ram . | . . . . Kick . | . . . . Crush 5 | . 2 3 . Escape Stasis . | . . . . Rewire . | . . . . Trap . | . . . . Miscellaneous . | . . . . Route ------- -11/Junkyard -10/Materials (discovered 5 exits: [*Mat x3] / *Min x2) -10/Mines (discovered 3 exits: [*Mat x2] / *Exi) -10/Exiles History --------- Turn | Location | Event 21 | -11/Junkyard | Discovered new exit (range 16) 638 | -11/Junkyard | Entered Materials 639 | -10/Materials | Build established: Mutant 852 | -10/Materials | Discovered new exit (range 13) 1196 | -10/Materials | Destroyed 8 combat bots 1363 | -10/Materials | Discovered new exit (range 7) 1566 | -10/Materials | Discovered new exit (range 15) 1662 | -10/Materials | Discovered new exit (range 16) 1852 | -10/Materials | Discovered new exit (range 13) 1880 | -10/Materials | Entered Mines 2104 | -10/Mines | Met a Derelict shopkeep closing up shop 2566 | -10/Mines | Discovered new exit (range 9) 2603 | -10/Mines | Core integrity fell below 50% 2626 | -10/Mines | Escorted by a lone wolf Derelict 2717 | -10/Mines | Discovered new exit (range 6) 2880 | -10/Mines | Deemed a non-threat by the Exiles lab entrance 2882 | -10/Mines | Discovered new exit (range 5) 2888 | -10/Mines | Entered Exiles 2928 | -10/Exiles | Met 8R-AWN 2954 | -10/Exiles | Met EX-HEX 3004 | -10/Exiles | Met EX-BIN 3047 | -10/Exiles | Aligned with FarCom system 3049 | -10/Exiles | Given EX-Vault access code 3098 | -10/Exiles | Opened EX-Vault 3111 | -10/Exiles | Found Latent Energy Streamer 3168 | -10/Exiles | Warned to stay clear of 0b10 Research branches 3234 | -10/Exiles | Exiles lab attacked by MAIN.C 3371 | -10/Exiles | Attacked by the Exiles 3378 | -10/Exiles | Core integrity fell below 20% 3393 | -10/Exiles | Destroyed by 8R-AWN with 8R-AWN's Boregun Last Messages --------------- 03269_ EXILES: Lab perimeter alert, evacuate immediately. 03274_ EX-BIN: "Not cool, MAIN.C, I don't even have my SDF Cannon ready..." 03336_ 8R-AWN: "I have a feeling things are about to get a lot worse here, go go go take the back way out!" 03353_ HV Slug penetrates Machine. 03353_ Machine disabled. 03353_ HV Slug penetrates Machine. 03370_ Machine disabled. 03371_ EXILES: Additional hostile detected within perimeter. 03371_ Penetrated by HV Slug. 03371_ HV Slug penetrates Wall. 03373_ Penetrated by HV Slug. 03375_ HV Slug penetrates Machine. 03375_ Machine disabled. 03375_ HV Slug penetrates Wall. 03377_ Penetrated by HV Slug. 03382_ Critical hit (Destroy). 03382_ Assault Rifle destroyed. 03384_ Penetrated by HV Slug. Map ----- +----------------------------------------------------+ | ???????????????????????????????????????#""X" | | ???????????????????????????????????????#" | | ???????????????????????????????????????#" ## | | ???????????????????????????????????????#""""""?# | | ????????????????????????????????????????#"###??# | | ???????????????????????????????????????????????# | | ???????????????????????????????????????????????# | | ??????????????????????????????????????????????## | | ??????????????????????????????????????????????#" | | ??????????????????????????????????????????????#" | | ??????????????????????????????????????????????#" | | ??????????????????????????????????????????????#" | | ??????????????????????????????????????????????#" | | ??????????????????????????????????????????????#" | | ??????????????????????????????????????????????## | | ??????????????"????????????????????????????????# | | ????????????? ?????????????????? ??????????#" | | ????????????? ????????????????? ??????????#" | | ???????????? ??????????????? ""?????????#" | | ???????????? ##????????????" "?????????##" | | ?????????????? z #???????????# #????????##"" | | ??????????????#" ######???### ###?######"" | | ???????????????#" ""###;#X# #"###""""""" | | ???????????????#" """""" " "" | | ?????????????????# g "" """ " | | ??????????????????# @ " " | | ??????????????????### | | ????????????????????### | | ??????????????????????## | | ???????????????????????## | | ????????????????????????##" | | ?????????????????????????#""" """"" | | ?????????????????????????#" ###### | | ????????????????????????#"" ""##????# | | ????????????????????????#""" """##?????? | | ????????????????????????""" t ""##??????? | | ????????????????????????""" "#???????? | | ????????????????????????"" ##???????? | | ????????????????????????""" = ???????? | | ????????????????????????"" ??????? | | ????????????????????????#"" ?????? | | ????????????????????????#"""" ????? | | ?????????????????????????# ????? | | ??????????????????????????? ????? | | ??????????????????????????"""" ????? | | ????????????????????????????? ??????? | | ??????????????????????????????? "????????? | | ????????????????????????????????? ?????????? | | ?????????????????????????????????????????????????? | | ?????????????????????????????????????????????????? | +----------------------------------------------------+ Best States ------------- Heat Dissipation 25 Energy Generation 18 Energy Capacity 250 Matter Stores 300 Matter Capacity 300 Sight Range 16 Terrain Scan Density 10 Evasion (%) 40 Targeting Accuracy 8 Recoil Reduction 2 Offensive Hacking 10 Item Schematics ----------------- None Robot Schematics ------------------ None Fabricated ------------ Nothing Alien Tech Used ----------------- None Achievements -------------- None Challenges ------------ None Game ------ Seed DynamicCatalystAnalyzer Manual? 0 Play Time 00:21:04 Cumulative 30.9 hours Start 2023.07.10 @ 13:34:35 End 2023.07.10 @ 14:09:50 Sessions 1 Manual Loads 0 Difficulty Rogue Special Mode None Game No. 21 Rogue 21 Adventurer 0 Explorer 0 Win Type - Total 0 Types 0/0/0/0/0/0/0/0/0 Lore% 25 Gallery% 28 Achievement% 28 Wizard Run 0 Options --------- ASCII 0 Keyboard 0 Movement Mouse Keybinds 0 Fullscreen 1 Font 18/SmallcapsGlow Map View 76x50 Tactical HUD 1 Map Filters NONE Filters NONE Steam X RUN: a143b953-6fe1-4a8f-b1d4-719d3fd25433